bitfinex/quotes_SOLUSD_20241225
["timestamp","ask_amount","ask_price","bid_price","bid_amount"]
[1735142503897,20.87338868,198.73,198.65,8.29348868]
[1735142505205,23.776884,198.72,198.65,8.29348868]
[1735142506612,23.776884,198.72,198.62,1.6028]
[1735142506787,23.776884,198.72,198.65,8.29348868]
[1735142514895,23.776884,198.74,198.64,20.0]
[1735142515215,23.776884,198.74,198.66,8.29348868]
[1735142517320,23.776884,198.74,198.64,20.0]
[1735142517532,23.776884,198.74,198.67,8.29348868]
[1735142525633,23.776884,198.75,198.67,8.29348868]
[1735142526136,23.776884,198.75,198.68,1.5349]
[1735142527030,12.5758,198.8,198.68,1.5349]
[1735142527234,18.29348868,198.77,198.69,8.29348868]
[1735142527610,18.29348868,198.77,198.7,8.29348868]
[1735142529539,10.0,198.77,198.7,8.29348868]
[1735142529717,10.0,198.77,198.73,8.29348868]
[1735142530344,10.0,198.77,198.75,8.29348868]
[1735142531737,10.0,198.77,198.75,9.79368868]
[1735142532444,10.0,198.77,198.76,8.29348868]
[1735142537842,10.0,198.77,198.76,14.30158868]
[1735142539625,10.0,198.77,198.76,14.42707868]
[1735142541240,10.0,198.77,198.76,15.18139211]
[1735142542932,10.0,198.77,198.76,45.48139211]
[1735142545051,10.0,198.77,198.76,14.42707868]
[1735142545557,10.0,198.77,198.76,6.13359]
[1735142545728,10.0,198.77,198.76,14.42707868]
[1735142546129,10.0,198.77,198.76,6.13359]
[1735142546351,10.0,198.77,198.76,14.30158868]
[1735142547730,10.0,198.77,198.75,1.5002]
[1735142547927,10.0,198.77,198.76,8.29348868]
[1735142548375,10.0,198.77,198.7,1.5923]
[1735142548654,10.0,198.77,198.75,8.29348868]
[1735142550763,10.0,198.77,198.71,20.0]
[1735142550929,10.0,198.77,198.74,8.29348868]
[1735142551944,10.0,198.77,198.75,8.29348868]
[1735142553551,10.0,198.77,198.76,8.29348868]
[1735142555668,10.0,198.77,198.76,8.41897868]
[1735142560358,23.776884,198.89,198.79,20.0]
[1735142560570,23.776884,198.89,198.84,8.29348868]
[1735142561971,8.29348868,198.88,198.76,20.0]
[1735142562178,23.776884,198.87,198.81,8.29348868]
[1735142562879,32.07037268,198.87,198.73,0.75429507]
[1735142563182,23.776884,198.81,198.74,8.29348868]
[1735142563874,32.07037268,198.81,198.71,1.5923]
[1735142564060,8.29348868,198.79,198.72,8.29348868]
[1735142564260,23.776884,198.78,198.71,8.29348868]
[1735142565356,32.07037268,198.76,198.64,0.7547305]
[1735142565561,23.776884,198.74,198.68,8.29348868]
[1735142567171,23.776884,198.72,198.62,20.0]
[1735142567353,32.07037268,198.72,198.59,30.0]
[1735142567557,32.07037268,198.72,198.65,8.29348868]
[1735142568381,23.776884,198.72,198.66,8.29348868]
[1735142568559,23.776884,198.72,198.67,8.29348868]
[1735142569465,23.776884,198.72,198.68,8.29348868]
[1735142569662,23.776884,198.72,198.69,8.29348868]
[1735142572487,23.776884,198.72,198.68,8.29348868]
[1735142573480,23.776884,198.72,198.67,8.29348868]
[1735142575973,23.776884,198.72,198.63,20.0]
[1735142576169,23.776884,198.73,198.67,8.29348868]
[1735142577290,23.776884,198.74,198.67,8.29348868]
[1735142578563,23.776884,198.74,198.7,8.29348868]
[1735142578763,23.776884,198.74,198.69,8.29348868]
[1735142578958,44.64897268,198.75,198.67,8.29348868]
[1735142579186,23.776884,198.73,198.66,8.29348868]
[1735142579668,23.776884,198.74,198.68,8.29348868]
[1735142581889,32.07037268,198.74,198.67,8.29348868]
[1735142582391,23.776884,198.74,198.67,8.29348868]
[1735142582690,23.776884,198.74,198.69,8.29348868]
[1735142582891,23.776884,198.74,198.68,8.29348868]
[1735142584994,23.71633161,198.74,198.68,8.29348868]
[1735142586791,32.00982029,198.74,198.67,8.29348868]
[1735142587299,23.776884,198.72,198.66,8.29348868]
[1735142590404,33.2902,198.78,198.63,8.29348868]
[1735142590405,32.07037268,198.7,198.63,8.29348868]
[1735142590899,23.776884,198.7,198.63,8.29348868]
[1735142592035,23.776884,198.7,198.65,8.29348868]
[1735142592838,23.776884,198.7,198.64,8.29348868]
[1735142595428,23.776884,198.7,198.57,3.62784947]
[1735142595725,40.09477268,198.7,198.63,8.29348868]
[1735142596239,23.776884,198.68,198.57,1.597]
[1735142596422,23.776884,198.66,198.59,8.29348868]
[1735142596626,23.776884,198.64,198.57,8.29348868]
[1735142597327,32.07037268,198.64,198.57,8.29348868]
[1735142597831,44.65597268,198.64,198.57,8.29348868]
[1735142598135,23.776884,198.6,198.53,8.29348868]
[1735142598640,32.07037268,198.58,198.44,43.27669482]
[1735142598807,32.07037268,198.58,198.5,8.29348868]
[1735142599139,23.776884,198.56,198.5,8.29348868]
[1735142600648,23.776884,198.54,198.48,8.29348868]
[1735142600835,23.776884,198.54,198.47,8.29348868]
[1735142601043,32.07037268,198.54,198.47,8.29348868]
[1735142601347,32.07037268,198.54,198.38,23.66212619]
[1735142601348,32.07037268,198.52,198.45,8.29348868]
[1735142601535,8.29348868,198.5,198.43,8.29348868]
[1735142601930,12.5938,198.51,198.41,8.29348868]
[1735142601931,32.07037268,198.49,198.41,8.29348868]
[1735142602331,8.29348868,198.46,198.39,8.29348868]
[1735142602548,23.776884,198.45,198.39,8.29348868]
[1735142602753,23.776884,198.43,198.37,8.29348868]
[1735142603857,6.2054,198.42,198.31,20.0]
[1735142604033,23.776884,198.41,198.35,8.29348868]
[1735142604232,23.776884,198.41,198.36,8.29348868]
[1735142609135,32.07037268,198.41,198.33,8.29348868]
[1735142609465,23.776884,198.39,198.32,8.29348868]
[1735142609840,32.07037268,198.39,198.31,8.29348868]
[1735142610163,32.07037268,198.39,198.32,8.29348868]
[1735142610369,23.776884,198.39,198.32,8.29348868]
[1735142610545,23.776884,198.39,198.33,8.29348868]
[1735142611234,23.776884,198.39,198.32,8.29348868]
[1735142612362,23.776884,198.39,198.33,8.29348868]
[1735142612557,23.776884,198.41,198.35,8.29348868]
[1735142613573,8.29348868,198.39,198.26,1.5762]
[1735142613735,23.776884,198.38,198.32,8.29348868]
[1735142613937,23.776884,198.38,198.33,8.29348868]
[1735142614133,23.776884,198.39,198.33,8.29348868]
[1735142614445,32.07037268,198.39,198.27,0.12549]
[1735142614648,23.776884,198.37,198.3,8.29348868]
[1735142614956,32.07037268,198.37,198.3,8.29348868]
[1735142615632,32.07037268,198.37,198.29,8.29348868]
[1735142616134,6.2054,198.42,198.27,8.29348868]
[1735142616135,32.07037268,198.34,198.27,8.29348868]
[1735142616848,23.776884,198.32,198.25,8.29348868]
[1735142617051,32.07037268,198.32,198.25,8.29348868]
[1735142617532,23.776884,198.32,198.26,8.29348868]
[1735142618188,23.776884,198.32,198.27,8.29348868]
[1735142618356,23.776884,198.32,198.28,8.29348868]
[1735142618547,8.29348868,198.31,198.24,8.29348868]
[1735142618746,23.776884,198.3,198.24,8.29348868]
[1735142618946,23.776884,198.3,198.25,8.29348868]
[1735142619268,23.776884,198.31,198.25,8.29348868]
[1735142619756,7.8375,198.33,198.26,8.29348868]
[1735142621062,23.776884,198.32,198.26,8.29348868]
[1735142622471,23.776884,198.32,198.18,13.3713309]
[1735142622641,23.776884,198.32,198.25,8.29348868]
[1735142623167,23.776884,198.32,198.21,20.0]
[1735142623351,8.29348868,198.28,198.21,8.29348868]
[1735142623674,23.776884,198.27,198.19,8.29348868]
[1735142624275,23.776884,198.27,198.21,8.29348868]
[1735142624437,23.776884,198.27,198.13,0.75682611]
[1735142624643,8.29348868,198.26,198.18,8.29348868]
[1735142624845,1.6547,198.24,198.18,8.29348868]
[1735142625150,23.776884,198.23,198.18,8.29348868]
[1735142626047,23.776884,198.23,198.16,8.29348868]
[1735142629266,23.776884,198.23,198.17,8.29348868]
[1735142630576,23.776884,198.23,198.13,20.0]
[1735142630783,23.776884,198.23,198.17,8.29348868]
[1735142635079,7.8446,198.24,198.19,8.29348868]
[1735142635258,7.8446,198.24,198.13,20.0]
[1735142635259,7.8163,198.29,198.22,8.29348868]
[1735142635451,28.008861,198.29,198.22,8.29348868]
[1735142635780,7.8163,198.29,198.22,8.29348868]
[1735142636375,7.8163,198.29,198.25,8.29348868]
[1735142636575,20.188879,198.33,198.26,8.29348868]
[1735142636949,16.10978868,198.34,198.26,8.29348868]
[1735142637660,7.8163,198.34,198.27,8.29348868]
[1735142638179,16.10978868,198.34,198.27,8.29348868]
[1735142638477,8.29348868,198.33,198.26,8.29348868]
[1735142639081,23.776884,198.32,198.26,8.29348868]
[1735142639282,23.776884,198.32,198.27,8.29348868]
[1735142639481,23.776884,198.33,198.27,8.29348868]
[1735142641891,23.776884,198.33,198.25,8.29348868]
[1735142646297,23.776884,198.33,198.27,8.29348868]
[1735142646889,8.1,198.39,198.24,33.17395472]
[1735142647087,1.5731,198.39,198.33,8.29348868]
[1735142647287,1.5731,198.39,198.34,8.29348868]
[1735142647473,8.293489,198.42,198.36,8.29348868]
[1735142647862,1.5731,198.44,198.37,8.29348868]
[1735142649176,1.5731,198.44,198.38,8.29348868]
[1735142649376,23.776884,198.43,198.37,8.29348868]
[1735142649780,23.776884,198.43,198.36,8.29348868]
[1735142649979,32.07037268,198.43,198.35,8.29348868]
[1735142650194,36.7527308,198.43,198.35,12.9758468]
[1735142650493,12.9758468,198.42,198.35,12.9758468]
[1735142650795,23.776884,198.41,198.35,12.9758468]
[1735142651697,36.7527308,198.41,198.3,1.5793]
[1735142651900,36.7527308,198.41,198.29,6.1602]
[1735142651901,23.776884,198.39,198.33,12.9758468]
[1735142652269,12.9758468,198.38,198.31,12.9758468]
[1735142652472,23.776884,198.37,198.3,12.9758468]
[1735142653497,12.9758468,198.37,198.3,12.9758468]
[1735142653680,23.776884,198.36,198.3,12.9758468]
[1735142654594,23.776884,198.37,198.3,12.9758468]
[1735142655735,23.776884,198.38,198.32,12.9758468]
[1735142657176,23.776884,198.38,198.31,12.9758468]
[1735142657506,7.9766,198.44,198.33,12.9758468]
[1735142657680,12.9758468,198.43,198.36,12.9758468]
[1735142658404,0.12549,198.42,198.36,12.9758468]
[1735142658701,7.9766,198.44,198.39,12.9758468]
[1735142660191,7.9766,198.44,198.38,12.9758468]
[1735142660509,1.5731,198.44,198.4,12.9758468]
[1735142660812,1.5731,198.44,198.39,12.9758468]
[1735142661703,7.9493,198.49,198.41,12.9758468]
[1735142661885,20.9251468,198.49,198.41,12.9758468]
[1735142662401,12.9758468,198.48,198.4,12.9758468]
[1735142662608,12.9758468,198.47,198.4,12.9758468]
[1735142662779,12.9758468,198.46,198.39,12.9758468]
[1735142662979,23.776884,198.45,198.39,12.9758468]
[1735142663309,23.776884,198.46,198.39,12.9758468]
[1735142668794,36.373884,198.46,198.39,12.9758468]
[1735142669001,12.9758468,198.45,198.37,12.9758468]
[1735142669202,23.776884,198.44,198.37,12.9758468]
[1735142670117,23.776884,198.44,198.37,12.8758468]
[1735142670293,32.07946466,198.45,198.37,8.30258066]
[1735142673227,23.776884,198.45,198.39,8.30258066]
[1735142673393,23.776884,198.45,198.4,8.30258066]
[1735142674620,23.776884,198.45,198.39,8.30258066]
[1735142678628,23.776884,198.42,198.37,8.30258066]
[1735142680320,23.776884,198.42,198.39,8.30258066]
[1735142682044,23.776884,198.42,198.37,8.30258066]
[1735142684442,32.07946466,198.43,198.35,8.30258066]
[1735142684638,0.12549,198.42,198.35,8.30258066]
[1735142684840,32.07946466,198.41,198.33,8.30258066]
[1735142685144,23.776884,198.39,198.32,8.30258066]
[1735142685544,23.776884,198.39,198.33,8.30258066]
[1735142685758,23.776884,198.39,198.34,8.30258066]
[1735142686047,23.776884,198.4,198.34,8.30258066]
[1735142689049,23.776884,198.38,198.32,8.30258066]
[1735142689248,8.30258066,198.37,198.24,33.21032264]
[1735142689433,23.776884,198.36,198.27,20.0]
[1735142689638,23.776884,198.36,198.29,8.30258066]
[1735142689842,23.776884,198.36,198.3,8.30258066]
[1735142690155,8.30258066,198.37,198.27,20.0]
[1735142690156,23.902374,198.37,198.27,20.0]
[1735142690366,23.902374,198.37,198.3,8.30258066]
[1735142690735,23.776884,198.37,198.31,8.30258066]
[1735142691034,23.776884,198.38,198.31,8.30258066]
[1735142692253,23.776884,198.38,198.32,8.30258066]
[1735142694540,23.776884,198.38,198.31,8.30258066]
[1735142695051,32.07946466,198.38,198.31,8.30258066]
[1735142695260,32.07946466,198.38,198.3,8.30258066]
[1735142698450,23.902374,198.31,198.25,8.30258066]
[1735142698753,23.776884,198.32,198.26,8.30258066]
[1735142700962,32.07946466,198.32,198.25,8.30258066]
[1735142701252,44.68536466,198.32,198.25,8.30258066]
[1735142701470,23.776884,198.32,198.27,8.30258066]
[1735142701639,23.776884,198.32,198.29,8.30258066]
[1735142702255,8.1378,198.38,198.31,8.30258066]
[1735142703540,8.1378,198.38,198.32,8.30258066]
[1735142704166,23.776884,198.37,198.32,8.30258066]
[1735142706057,23.776884,198.38,198.32,8.30258066]
[1735142706239,23.776884,198.38,198.33,8.30258066]
[1735142706443,6.5532,198.42,198.36,8.30258066]
[1735142706853,6.5532,198.42,198.37,8.30258066]
[1735142707054,1.5846,198.43,198.37,8.30258066]
[1735142707366,8.30258066,198.45,198.38,8.30258066]
[1735142708371,33.5898083,198.47,198.4,8.30258066]
[1735142708562,41.89238896,198.47,198.4,8.30258066]
[1735142709079,8.30258066,198.48,198.36,20.0]
[1735142709240,8.42807066,198.47,198.4,8.30258066]
[1735142709440,8.42807066,198.47,198.39,8.30258066]
[1735142709973,23.776884,198.46,198.36,20.0]
[1735142710147,23.776884,198.46,198.39,8.30258066]
[1735142710657,32.07946466,198.46,198.39,8.30258066]
[1735142711168,8.30258066,198.43,198.36,8.30258066]
[1735142711358,23.776884,198.42,198.36,8.30258066]
[1735142711566,8.30258066,198.41,198.34,8.30258066]
[1735142712069,23.776884,198.4,198.34,8.30258066]
[1735142712384,23.776884,198.4,198.34,12.97765619]
[1735142712549,23.776884,198.41,198.34,12.97765619]
[1735142712860,36.75454019,198.41,198.34,12.97765619]
[1735142713064,23.776884,198.39,198.33,12.97765619]
[1735142713963,23.776884,198.39,198.34,12.97765619]
[1735142714150,23.776884,198.4,198.33,12.97765619]
[1735142714357,0.12549,198.39,198.32,12.97765619]
[1735142714580,36.75454019,198.38,198.31,12.97765619]
[1735142714751,12.97765619,198.38,198.31,12.97765619]
[1735142715061,23.776884,198.37,198.31,12.97765619]
[1735142715263,23.776884,198.37,198.32,12.97765619]
[1735142715562,23.776884,198.38,198.32,12.97765619]
[1735142715768,23.776884,198.38,198.33,12.97765619]
[1735142716783,23.776884,198.38,198.31,12.97765619]
[1735142721068,23.776884,198.38,198.33,12.97765619]
[1735142724886,0.12549,198.37,198.33,12.97765619]
[1735142725089,0.12549,198.37,198.31,12.97765619]
[1735142725289,13.10314619,198.37,198.29,12.97765619]
[1735142725506,13.10314619,198.37,198.23,7.81023539]
[1735142725507,12.97765619,198.34,198.23,7.81023539]
[1735142725661,12.97765619,198.31,198.24,12.97765619]
[1735142725863,36.75454019,198.3,198.23,7.81023539]
[1735142726086,23.776884,198.28,198.23,7.81023539]
[1735142726264,23.776884,198.28,198.2,1.6344]
[1735142726265,12.97765619,198.27,198.2,7.81023539]
[1735142726595,23.776884,198.26,198.2,7.81023539]
[1735142727166,23.776884,198.26,198.19,12.97765619]
[1735142728590,36.75454019,198.26,198.19,12.97765619]
[1735142729087,36.75454019,198.26,198.18,12.97765619]
[1735142729286,0.12549,198.25,198.17,12.97765619]
[1735142729477,23.776884,198.22,198.16,12.97765619]
[1735142729885,23.902374,198.23,198.16,12.97765619]
[1735142730483,36.88003019,198.23,198.16,12.97765619]
[1735142730836,23.902374,198.21,198.15,12.97765619]
[1735142731095,36.88003019,198.21,198.14,12.97765619]
[1735142731291,23.902374,198.19,198.13,12.97765619]
[1735142732098,12.97765619,198.21,198.14,12.97765619]
[1735142732099,23.902374,198.2,198.14,12.97765619]
[1735142732393,36.88003019,198.2,198.12,12.97765619]
[1735142732580,36.88003019,198.2,198.13,12.97765619]
[1735142732993,23.902374,198.2,198.14,12.97765619]
[1735142733193,36.88003019,198.2,198.13,12.97765619]
[1735142733784,36.88003019,198.2,198.12,12.97765619]
[1735142735300,23.902374,198.18,198.11,12.97765619]
[1735142737396,23.776884,198.18,198.13,12.97765619]
[1735142737585,12.97765619,198.23,198.15,12.97765619]
[1735142737988,20.73455619,198.24,198.16,12.97765619]
[1735142738200,0.12549,198.23,198.18,8.31937318]
[1735142738405,7.7569,198.24,198.19,8.31937318]
[1735142738600,7.7569,198.24,198.2,8.31937318]
[1735142739109,1.6194,198.24,198.2,8.31937318]
[1735142740215,23.776884,198.23,198.2,12.99514121]
[1735142742415,23.776884,198.23,198.12,25.61324121]
[1735142742416,23.776884,198.23,198.19,12.99514121]
[1735142743288,36.89751521,198.24,198.09,1.6387]
[1735142743600,23.776884,198.22,198.16,12.99514121]
[1735142744017,13.12063121,198.24,198.09,1.6387]
[1735142744018,23.776884,198.23,198.17,12.99514121]
[1735142744192,23.776884,198.23,198.16,12.99514121]
[1735142744993,23.776884,198.23,198.17,12.99514121]
[1735142745910,23.776884,198.23,198.16,12.99514121]
[1735142746605,36.77202521,198.23,198.15,12.99514121]
[1735142747713,23.776884,198.23,198.09,1.6387]
[1735142747897,23.776884,198.23,198.17,12.99514121]
[1735142748097,23.776884,198.23,198.18,12.99514121]
[1735142748288,36.77202521,198.24,198.16,12.99514121]
[1735142750318,13.12063121,198.23,198.16,12.99514121]
[1735142750502,23.776884,198.22,198.15,12.99514121]
[1735142750695,23.776884,198.22,198.16,12.99514121]
[1735142750896,23.776884,198.22,198.17,12.99514121]
[1735142751110,23.902374,198.23,198.17,12.99514121]
[1735142751720,23.776884,198.23,198.17,12.99514121]
[1735142751905,23.776884,198.24,198.17,12.99514121]
[1735142753520,36.77202521,198.24,198.17,12.99514121]
[1735142753914,36.77202521,198.22,198.15,12.99514121]
[1735142754214,36.77202521,198.19,198.12,12.99514121]
[1735142754431,36.77202521,198.17,198.1,12.99514121]
[1735142755231,23.776884,198.15,198.08,12.99514121]
[1735142755403,12.99514121,198.14,198.07,12.99514121]
[1735142755595,23.776884,198.13,198.07,12.99514121]
[1735142756102,23.776884,198.13,198.09,12.99514121]
[1735142756932,23.776884,198.13,198.1,12.99514121]
[1735142759625,12.99514121,198.18,198.11,12.99514121]
[1735142759835,12.99514121,198.19,198.12,12.99514121]
[1735142760228,8.44910611,198.19,198.12,8.32361611]
[1735142760432,0.12549,198.19,198.12,8.32361611]
[1735142760634,8.44910611,198.19,198.12,8.32361611]
[1735142761114,23.776884,198.18,198.12,8.32361611]
[1735142761627,32.22599011,198.19,198.12,8.32361611]
[1735142761827,1.6413,198.2,198.15,8.32361611]
[1735142762034,1.6413,198.2,198.16,8.32361611]
[1735142763131,23.776884,198.19,198.16,8.32361611]
[1735142763308,1.6413,198.25,198.18,8.32361611]
[1735142763503,1.6413,198.25,198.19,8.32361611]
[1735142763703,1.6413,198.25,198.21,8.32361611]
[1735142765044,23.776884,198.24,198.21,8.32361611]
[1735142765214,12.6084,198.28,198.22,8.32361611]
[1735142765706,1.6413,198.3,198.22,8.32361611]
[1735142766011,6.5155,198.31,198.26,8.32361611]
[1735142766212,1.6413,198.34,198.28,12.98588779]
[1735142766426,1.6413,198.34,198.29,12.98588779]
[1735142766809,1.6413,198.34,198.28,12.98588779]
[1735142768630,23.776884,198.33,198.28,12.98588779]
[1735142769037,23.776884,198.33,198.3,12.98588779]
[1735142769333,12.6021,198.38,198.3,12.98588779]
[1735142769334,12.98588779,198.38,198.3,12.98588779]
[1735142769530,12.98588779,198.38,198.31,12.98588779]
[1735142769707,1.5035,198.39,198.33,12.98588779]
[1735142769907,14.48938779,198.39,198.32,12.98588779]
[1735142770142,12.98588779,198.37,198.3,12.98588779]
[1735142770646,12.98588779,198.38,198.31,12.98588779]
[1735142771144,23.776884,198.37,198.31,12.98588779]
[1735142771947,36.76277179,198.37,198.3,12.98588779]
[1735142772742,12.98588779,198.35,198.29,12.98588779]
[1735142772941,23.776884,198.34,198.27,12.98588779]
[1735142773463,23.776884,198.32,198.25,12.98588779]
[1735142773750,23.776884,198.32,198.29,12.98588779]
[1735142774349,23.776884,198.32,198.28,12.98588779]
[1735142774522,23.776884,198.32,198.29,12.98588779]
[1735142774946,23.776884,198.32,198.28,12.98588779]
[1735142775554,23.776884,198.32,198.29,12.98588779]
[1735142775888,1.5035,198.39,198.31,12.98588779]
[1735142776051,12.98588779,198.43,198.35,12.98588779]
[1735142777863,12.98588779,198.42,198.35,12.98588779]
[1735142778031,23.776884,198.41,198.35,12.98588779]
[1735142779335,23.776884,198.41,198.34,12.98588779]
[1735142779628,36.76277179,198.41,198.34,12.98588779]
[1735142780165,12.98588779,198.4,198.32,12.98588779]
[1735142780365,36.76277179,198.39,198.31,32.98588779]
[1735142780537,12.98588779,198.39,198.31,32.98588779]
[1735142781058,23.776884,198.38,198.32,12.98588779]
[1735142781865,23.776884,198.39,198.32,12.98588779]
[1735142787374,12.98588779,198.38,198.31,12.98588779]
[1735142787680,36.76277179,198.37,198.3,12.98588779]
[1735142788172,32.08521677,198.37,198.3,8.30833277]
[1735142788873,23.776884,198.37,198.29,8.30833277]
[1735142789069,23.776884,198.35,198.29,8.30833277]
[1735142789574,23.776884,198.35,198.31,8.30833277]
[1735142790152,8.30833277,198.4,198.33,8.30833277]
[1735142790355,1.5035,198.44,198.34,8.30833277]
[1735142790556,8.30833277,198.42,198.35,8.30833277]
[1735142790958,8.30833277,198.43,198.35,8.30833277]
[1735142791256,8.30833277,198.42,198.35,8.30833277]
[1735142792176,23.776884,198.4,198.34,8.30833277]
[1735142792362,23.776884,198.4,198.33,8.30833277]
[1735142794876,23.776884,198.4,198.34,8.30833277]
[1735142795261,23.776884,198.4,198.36,8.30833277]
[1735142795558,23.776884,198.41,198.35,8.30833277]
[1735142796183,32.08521677,198.41,198.34,28.30833277]
[1735142796390,8.30833277,198.4,198.34,20.0]
[1735142796572,1.5035,198.44,198.27,1.66]
[1735142796573,32.08521677,198.37,198.27,1.66]
[1735142796773,8.30833277,198.34,198.27,9.96833277]
[1735142796955,32.08521677,198.32,198.25,8.30833277]
[1735142797285,23.776884,198.32,198.26,8.30833277]
[1735142797469,23.776884,198.32,198.27,8.30833277]
[1735142797776,23.776884,198.33,198.27,8.30833277]
[1735142799861,23.776884,198.33,198.26,28.30833277]
[1735142800270,23.776884,198.33,198.26,32.98634126]
[1735142800573,36.76322526,198.33,198.26,32.98634126]
[1735142801185,23.776884,198.3,198.23,12.98634126]
[1735142801497,12.98634126,198.29,198.22,12.98634126]
[1735142801676,23.776884,198.28,198.22,12.98634126]
[1735142802199,23.776884,198.28,198.23,12.98634126]
[1735142802392,23.776884,198.29,198.23,12.98634126]
[1735142802696,23.776884,198.3,198.24,12.98634126]
[1735142804473,23.776884,198.3,198.23,12.98634126]
[1735142804990,36.76322526,198.3,198.23,12.98634126]
[1735142805477,23.776884,198.3,198.23,12.98634126]
[1735142806035,23.776884,198.3,198.24,12.98634126]
[1735142806312,23.776884,198.31,198.24,12.98634126]
[1735142806485,12.98634126,198.34,198.27,12.98634126]
[1735142806925,12.98634126,198.32,198.24,12.98634126]
[1735142808113,23.776884,198.31,198.24,12.98634126]
[1735142808314,23.776884,198.31,198.25,12.98634126]
[1735142808685,23.776884,198.32,198.25,12.98634126]
[1735142811842,23.776884,198.32,198.26,12.98634126]
[1735142812647,12.98634126,198.35,198.26,12.98634126]
[1735142812817,12.98634126,198.35,198.28,12.98634126]
[1735142813941,23.776884,198.34,198.28,12.98634126]
[1735142815539,6.6271,198.37,198.3,12.98634126]
[1735142815540,19.61344126,198.37,198.3,12.98634126]
[1735142815738,12.98634126,198.38,198.3,12.98634126]
[1735142816645,12.98634126,198.37,198.3,12.98634126]
[1735142816943,23.776884,198.36,198.29,12.98634126]
[1735142817128,23.776884,198.37,198.3,12.98634126]
[1735142820346,23.776884,198.37,198.3,8.30825868]
[1735142822034,23.776884,198.35,198.28,8.30825868]
[1735142824045,23.776884,198.35,198.32,8.30825868]
[1735142824246,8.30825868,198.42,198.34,8.30825868]
[1735142826247,8.30825868,198.4,198.27,22.80392143]
[1735142826448,23.776884,198.36,198.27,9.43873539]
[1735142826754,23.776884,198.34,198.27,9.43873539]
[1735142826931,23.776884,198.34,198.29,8.30825868]
[1735142827348,23.776884,198.34,198.28,8.30825868]
[1735142827533,23.776884,198.34,198.27,9.93675868]
[1735142827733,32.08514268,198.34,198.27,9.93675868]
[1735142828833,23.776884,198.34,198.27,9.93675868]
[1735142829961,23.776884,198.34,198.29,8.30825868]
[1735142831454,23.776884,198.34,198.3,8.30825868]
[1735142832339,8.30825868,198.39,198.32,8.30825868]
[1735142832539,8.30825868,198.41,198.34,8.30825868]
[1735142832757,6.2806,198.44,198.34,8.30825868]
[1735142832933,14.58885868,198.44,198.36,8.30825868]
[1735142833258,8.30825868,198.47,198.4,8.30825868]
[1735142834147,12.96882614,198.47,198.4,12.96882614]
[1735142834456,23.776884,198.46,198.39,12.96882614]
[1735142834656,36.74571014,198.46,198.39,12.96882614]
[1735142834856,36.74571014,198.46,198.38,12.96882614]
[1735142835858,23.776884,198.46,198.39,12.96882614]
[1735142836458,36.74571014,198.46,198.38,12.96882614]
[1735142837140,23.776884,198.43,198.36,32.96882614]
[1735142837341,12.96882614,198.43,198.36,32.96882614]
[1735142837540,23.776884,198.42,198.36,20.0]
[1735142837860,23.776884,198.42,198.34,12.96882614]
[1735142837861,36.74571014,198.42,198.34,12.96882614]
[1735142838453,23.776884,198.4,198.34,12.96882614]
[1735142839149,23.776884,198.41,198.34,12.96882614]
[1735142839659,12.96882614,198.4,198.32,12.96882614]
[1735142839866,36.74571014,198.39,198.31,12.96882614]
[1735142840561,23.776884,198.39,198.32,12.96882614]
[1735142842270,12.6,198.42,198.3,1.6639]
[1735142842271,12.96882614,198.42,198.34,12.96882614]
[1735142842439,12.96882614,198.42,198.36,12.96882614]
[1735142842840,12.96882614,198.44,198.36,12.96882614]
[1735142843242,12.96882614,198.42,198.34,12.96882614]
[1735142843848,12.96882614,198.4,198.32,12.96882614]
[1735142844171,23.776884,198.36,198.31,12.96882614]
[1735142846373,23.776884,198.36,198.33,12.96882614]
[1735142846557,14.61972614,198.41,198.33,12.96882614]
[1735142846882,12.96882614,198.4,198.33,12.96882614]
[1735142847754,12.96882614,198.4,198.3,1.6639]
[1735142847755,23.776884,198.4,198.35,12.96882614]
[1735142848461,23.776884,198.4,198.33,12.96882614]
[1735142849549,36.74571014,198.4,198.33,12.96882614]
[1735142853973,23.776884,198.4,198.33,12.96882614]
[1735142854175,23.776884,198.41,198.33,12.96882614]
[1735142855162,23.776884,198.42,198.36,12.96882614]
[1735142856275,23.776884,198.42,198.36,8.303554]
[1735142856786,8.303554,198.43,198.36,8.303554]
[1735142856987,1.6509,198.44,198.37,8.303554]
[1735142857355,9.954454,198.44,198.36,8.303554]
[1735142857688,8.303554,198.43,198.36,8.303554]
[1735142858078,23.776884,198.42,198.36,8.303554]